bitfinex/quotes_SOLUSD_20240816
["timestamp","ask_amount","ask_price","bid_price","bid_amount"]
[1723772346652,7.0561,141.72,141.69,20.0]
[1723772346821,7.0557,141.73,141.71,20.0]
[1723772347036,7.0557,141.73,141.72,45.12549]
[1723772347363,7.0552,141.74,141.72,45.12549]
[1723772349635,7.0556,141.73,141.72,45.0]
[1723772349841,7.0556,141.73,141.69,20.0]
[1723772350063,7.0562,141.72,141.7,45.25098]
[1723772351635,7.0562,141.72,141.7,45.12549]
[1723772351835,27.6505662,141.75,141.71,21.53673603]
[1723772352042,0.8505662,141.75,141.72,45.12549]
[1723772352273,0.8505662,141.75,141.73,20.12549]
[1723772352569,0.8505662,141.75,141.74,45.12549]
[1723772352740,7.9051662,141.75,141.74,0.12549]
[1723772352932,7.9051662,141.75,141.71,47.0565]
[1723772353134,7.9051662,141.75,141.72,45.25098]
[1723772353558,0.8505662,141.75,141.72,52.30668]
[1723772354339,0.8505662,141.75,141.73,20.0]
[1723772354567,0.8505662,141.75,141.74,45.25098]
[1723772357655,0.8505662,141.75,141.74,0.12549]
[1723772357860,0.8505662,141.75,141.73,45.0]
[1723772358672,0.8505662,141.75,141.72,45.12549]
[1723772358869,7.9052662,141.75,141.73,0.25098]
[1723772359277,7.9052662,141.75,141.73,0.12549]
[1723772359493,7.9052662,141.75,141.72,45.0]
[1723772359695,7.0559,141.73,141.69,27.0576]
[1723772361060,7.0559,141.73,141.7,0.25098]
[1723772361283,7.0559,141.73,141.7,45.25098]
[1723772364169,7.0553,141.74,141.71,20.0]
[1723772364474,7.9053662,141.75,141.72,45.12549]
[1723772364682,0.8505662,141.75,141.73,20.12549]
[1723772364883,0.8505662,141.75,141.74,45.12549]
[1723772365200,0.8505662,141.75,141.74,45.25098]
[1723772365573,0.8505662,141.75,141.74,46.66177989]
[1723772365771,0.8505662,141.75,141.74,45.25098]
[1723772368690,0.8505662,141.75,141.74,45.12549]
[1723772368889,0.8505662,141.75,141.72,24.6959]
[1723772369207,0.8505662,141.75,141.73,45.12549]
[1723772369821,0.8505662,141.75,141.72,17.6401]
[1723772369822,7.9053662,141.75,141.72,17.6401]
[1723772372994,0.8505662,141.75,141.72,24.6962]
[1723772373307,0.8505662,141.75,141.73,45.12549]
[1723772373695,0.8505662,141.75,141.74,0.12549]
[1723772383008,0.8505662,141.75,141.71,20.0]
[1723772383239,10.72,141.74,141.71,27.0565]
[1723772383399,0.8505662,141.75,141.72,7.056]
[1723772383598,0.8505662,141.75,141.74,47.0551]
[1723772383825,0.8505662,141.75,141.74,48.46550934]
[1723772384332,0.8505662,141.75,141.74,93.96746934]
[1723772387160,0.8505662,141.75,141.74,93.96748183]
[1723772388924,0.8505662,141.75,141.74,92.55706]
[1723772389752,7.0513,141.82,141.78,20.0]
[1723772389958,7.9201768,141.82,141.79,45.25098]
[1723772391057,7.0518,141.81,141.79,45.12549]
[1723772393647,7.0518,141.81,141.79,46.53585677]
[1723772394250,7.9201768,141.82,141.79,46.53585677]
[1723772394440,0.8688768,141.82,141.8,21.41029013]
[1723772394638,0.8688768,141.82,141.81,65.12549]
[1723772394841,0.8688768,141.82,141.81,65.37647]
[1723772395338,0.8688768,141.82,141.81,45.37647]
[1723772395868,0.8688768,141.82,141.81,45.50196]
[1723772396173,0.8688768,141.82,141.81,52.55356]
[1723772396373,0.8688768,141.82,141.81,72.55356]
[1723772397451,0.8688768,141.82,141.81,124.62566]
[1723772397656,0.8688768,141.82,141.81,126.03522928]
[1723772397964,0.8688768,141.82,141.81,124.62566]
[1723772398175,11.5705211,141.9,141.87,20.0]
[1723772398176,7.8978211,141.9,141.87,20.0]
[1723772398363,7.8978211,141.9,141.88,45.25098]
[1723772399246,0.8505211,141.9,141.88,45.25098]
[1723772399450,0.8505211,141.9,141.88,46.66038964]
[1723772399761,0.8505211,141.9,141.88,45.25098]
[1723772399946,7.8977211,141.9,141.88,45.25098]
[1723772400272,7.0477,141.89,141.85,44.6733]
[1723772400443,7.0477,141.89,141.86,1.40958607]
[1723772400642,7.0483,141.88,141.83,20.0]
[1723772400849,17.7686,141.88,141.83,20.0]
[1723772401141,7.0488,141.87,141.83,27.0506]
[1723772401347,0.8505211,141.9,141.88,20.0]
[1723772401978,0.8505211,141.9,141.88,48.4573351]
[1723772402145,0.8505211,141.9,141.89,45.25098]
[1723772403449,0.8505211,141.9,141.89,52.54966]
[1723772404046,0.8505211,141.9,141.89,45.37647]
[1723772404246,0.8505211,141.9,141.89,45.25098]
[1723772404757,0.8505211,141.9,141.89,53.83337413]
[1723772404951,0.8505211,141.9,141.89,52.42417]
[1723772405666,0.8505211,141.9,141.89,52.29868]
[1723772405852,0.8505211,141.9,141.89,45.25098]
[1723772406464,0.8505211,141.9,141.89,65.25098]
[1723772406672,0.8505211,141.9,141.89,72.29868]
[1723772407075,0.8505211,141.9,141.89,72.42417]
[1723772407792,0.8505211,141.9,141.89,45.37647]
[1723772407995,0.8505211,141.9,141.88,20.0]
[1723772408178,0.8505211,141.9,141.86,20.0]
[1723772408485,7.8978211,141.9,141.86,20.0]
[1723772408787,7.0496,141.86,141.82,37.6276]
[1723772408989,7.0488,141.87,141.82,64.6787]
[1723772409689,0.8505211,141.9,141.86,20.0]
[1723772409989,7.8978211,141.9,141.86,20.0]
[1723772410350,7.8978211,141.9,141.86,27.049]
[1723772410753,7.8978211,141.9,141.87,45.12549]
[1723772411358,7.8978211,141.9,141.88,1.40947034]
[1723772411560,0.8505211,141.9,141.87,45.12549]
[1723772411768,0.8505211,141.9,141.88,0.12549]
[1723772411985,0.8505211,141.9,141.88,20.12549]
[1723772412155,0.8505211,141.9,141.89,45.0]
[1723772412482,0.8505211,141.9,141.89,45.12549]
[1723772414476,0.8505211,141.9,141.89,45.25098]
[1723772415255,0.8505211,141.9,141.89,45.12549]
[1723772416376,7.8977211,141.9,141.89,45.12549]
[1723772416586,7.8977211,141.9,141.86,44.6716]
[1723772416895,0.8505211,141.9,141.87,52.29958]
[1723772417552,0.8505211,141.9,141.88,20.0]
[1723772417753,0.8505211,141.9,141.89,45.12549]
[1723772418192,0.8505211,141.9,141.87,0.12549]
[1723772418366,0.8505211,141.9,141.87,45.25098]
[1723772418990,0.8505211,141.9,141.87,52.29958]
[1723772420271,0.8505211,141.9,141.87,45.25098]
[1723772420476,7.8978211,141.9,141.87,45.25098]
[1723772421282,0.8505211,141.9,141.87,52.29958]
[1723772421455,0.8505211,141.9,141.87,45.25098]
[1723772423099,7.8977211,141.9,141.87,45.25098]
[1723772423472,0.8505211,141.9,141.87,45.12549]
[1723772423673,7.0482,141.88,141.84,7.0501]
[1723772423873,7.0482,141.88,141.85,45.12549]
[1723772424099,7.0482,141.88,141.86,0.12549]
[1723772425275,7.0482,141.88,141.85,45.12549]
[1723772425478,26.73,141.89,141.83,37.6257]
[1723772425696,26.73,141.89,141.78,42.0857]
[1723772425697,41.7685,141.85,141.78,20.0]
[1723772426007,7.0508,141.83,141.78,27.0528]
[1723772426317,7.0508,141.83,141.79,7.0525]
[1723772427290,7.0508,141.83,141.8,45.25098]
[1723772428313,7.0508,141.83,141.8,45.12549]
[1723772428496,7.0508,141.83,141.79,45.0]
[1723772428999,7.0508,141.83,141.8,0.12549]
[1723772429307,7.0508,141.83,141.8,0.25098]
[1723772429515,48.0077,141.85,141.8,0.12549]
[1723772429681,7.0512,141.82,141.79,45.0]
[1723772429877,7.0502,141.84,141.79,52.0521]
[1723772430080,21.2777,141.85,141.8,0.25098]
[1723772430811,21.2777,141.85,141.81,20.0]
[1723772431010,7.0502,141.84,141.82,45.12549]
[1723772431382,7.0502,141.84,141.8,7.17759]
[1723772431584,7.0502,141.84,141.81,45.12549]
[1723772432813,28.3275,141.85,141.81,45.12549]
[1723772432984,7.0502,141.84,141.81,0.12549]
[1723772433187,7.0508,141.83,141.81,0.12549]
[1723772433409,26.73,141.83,141.77,20.0]
[1723772433608,7.052,141.81,141.77,20.0]
[1723772433810,7.0522,141.8,141.76,24.6886]
[1723772434882,26.73,141.81,141.73,37.6385]
[1723772435216,26.73,141.81,141.72,7.056]
[1723772435217,26.73,141.79,141.72,7.056]
[1723772435511,26.73,141.79,141.71,36.3159]
[1723772435512,7.0547,141.75,141.71,20.0]
[1723772435696,7.0547,141.75,141.71,27.0566]
[1723772436096,7.0554,141.74,141.71,20.0]
[1723772436414,7.0557,141.73,141.71,20.0]
[1723772438521,7.0547,141.75,141.71,27.0565]
[1723772438816,7.0547,141.75,141.72,45.25098]
[1723772446306,7.0551,141.74,141.72,45.25098]
[1723772450709,7.0543,141.76,141.73,1.41099573]
[1723772450932,7.0543,141.76,141.72,45.25098]
[1723772451302,7.0547,141.75,141.72,45.25098]
[1723772451799,7.0547,141.75,141.69,20.0]
[1723772451800,26.73,141.75,141.69,20.0]
[1723772451995,10.73,141.73,141.69,20.0]
[1723772452618,7.0564,141.72,141.69,20.0]
[1723772453027,7.0566,141.71,141.7,0.12549]
[1723772453335,7.0575,141.7,141.65,37.6481]
[1723772453625,7.0575,141.7,141.65,44.7074]
[1723772454103,7.0575,141.7,141.67,20.0]
[1723772454727,7.0575,141.7,141.68,45.12549]
[1723772457014,44.4569,141.75,141.69,20.0]
[1723772457344,7.0564,141.72,141.7,46.53674298]
[1723772458711,7.0564,141.72,141.7,45.12549]
[1723772460410,7.0566,141.71,141.7,45.12549]
[1723772460613,7.0566,141.71,141.68,0.12549]
[1723772460810,7.0573,141.7,141.68,45.12549]
[1723772461417,7.0573,141.7,141.68,45.0]
[1723772462547,7.0585,141.68,141.65,20.0]
[1723772462846,26.82,141.69,141.65,20.0]
[1723772463018,7.059,141.67,141.65,20.0]
[1723772463735,26.82,141.69,141.65,20.0]
[1723772463937,26.82,141.69,141.66,45.12549]
[1723772464118,7.0586,141.67,141.66,45.12549]
[1723772464443,7.0582,141.68,141.66,45.12549]
[1723772464649,7.0582,141.68,141.67,0.12549]
[1723772465866,7.0578,141.69,141.67,0.12549]
[1723772467144,26.82,141.73,141.67,20.12549]
[1723772467454,7.0557,141.73,141.69,20.0]
[1723772467749,26.82,141.75,141.7,45.25098]
[1723772468044,7.0562,141.72,141.7,45.25098]
[1723772469055,7.0562,141.72,141.7,0.25098]
[1723772471931,16.0178,141.8,141.74,37.6372]
[1723772472254,7.0534,141.78,141.75,46.66176422]
[1723772472570,42.8378,141.8,141.75,45.25098]
[1723772472853,7.054,141.77,141.75,0.12549]
[1723772473433,7.0532,141.78,141.75,0.12549]
[1723772473648,7.0532,141.78,141.75,0.25098]
[1723772475057,7.0522,141.8,141.75,0.25098]
[1723772475264,7.0522,141.8,141.76,27.0541]
[1723772475435,7.0522,141.8,141.77,46.53598809]
[1723772475751,7.0527,141.79,141.77,0.12549]
[1723772475944,7.0532,141.78,141.76,45.12549]
[1723772476165,7.0532,141.78,141.76,45.0]
[1723772476735,7.0532,141.78,141.75,45.12549]
[1723772476946,7.0532,141.78,141.76,0.12549]
[1723772477761,7.0547,141.75,141.72,32.8718]
[1723772478064,7.0547,141.75,141.72,35.2316]
[1723772478562,7.0547,141.75,141.72,15.2316]
[1723772478735,7.0547,141.75,141.72,35.2316]
[1723772479135,7.0547,141.75,141.73,45.12549]
[1723772480036,7.0547,141.75,141.71,0.12549]
[1723772480260,26.82,141.75,141.7,20.0]
[1723772480538,26.82,141.75,141.7,21.41121398]
[1723772480759,7.0558,141.73,141.71,1.41120138]
[1723772480956,7.0552,141.74,141.71,1.41120138]
[1723772481158,7.0552,141.74,141.7,20.0]
[1723772481639,26.82,141.75,141.71,45.25098]
[1723772481640,7.0561,141.72,141.71,45.25098]
[1723772481839,7.0558,141.73,141.71,45.25098]
[1723772482354,26.82,141.73,141.68,20.0]
[1723772482555,7.058,141.69,141.66,20.0]
[1723772483753,7.058,141.69,141.67,45.12549]
[1723772484298,7.0573,141.7,141.67,45.12549]
[1723772485163,7.0573,141.7,141.68,1.53701962]
[1723772485364,7.0568,141.71,141.68,1.53701962]
[1723772485768,7.0562,141.72,141.69,20.12549]
[1723772486080,7.0562,141.72,141.7,45.12549]
[1723772488693,7.0552,141.74,141.7,45.12549]
[1723772488986,7.0557,141.73,141.7,45.12549]
[1723772489487,7.0562,141.72,141.7,45.12549]
[1723772491681,26.82,141.75,141.7,45.12549]
[1723772491873,7.0555,141.74,141.7,45.12549]
[1723772494080,7.0556,141.73,141.7,45.12549]
[1723772499299,7.0552,141.74,141.71,0.12549]
[1723772501588,7.0552,141.74,141.71,1.53659131]
[1723772501779,7.0552,141.74,141.71,0.12549]
[1723772503902,17.7752,141.74,141.71,0.12549]
[1723772511207,7.0556,141.73,141.71,0.12549]
[1723772511395,10.72,141.74,141.7,45.0]
[1723772511718,21.5213,141.78,141.67,37.646]
[1723772511719,10.72,141.72,141.67,37.646]
[1723772511893,7.0576,141.69,141.67,20.0]
[1723772512211,60.5169,141.75,141.67,20.0]
[1723772512212,17.7781,141.68,141.67,20.0]
[1723772512417,7.0587,141.67,141.65,15.5611]
[1723772512709,17.7783,141.68,141.65,15.5611]
[1723772513814,17.7783,141.68,141.66,45.12549]
[1723772514412,10.72,141.68,141.66,45.12549]
[1723772514718,17.6422,141.71,141.67,40.12549]
[1723772514719,17.777,141.71,141.67,40.12549]
[1723772515017,17.777,141.71,141.68,45.12549]
[1723772515427,7.0571,141.7,141.68,45.12549]
[1723772515722,7.0567,141.71,141.68,45.12549]
[1723772516017,7.0567,141.71,141.69,20.0]
[1723772516204,10.72,141.72,141.7,45.12549]
[1723772516395,17.7762,141.72,141.7,45.12549]
[1723772517093,16.6557,141.76,141.7,45.12549]
[1723772517298,10.72,141.76,141.71,48.59310508]
[1723772517497,10.72,141.76,141.72,45.12549]
[1723772517912,7.0556,141.74,141.72,45.12549]
[1723772518095,17.7756,141.74,141.72,45.0]
[1723772518950,7.0556,141.73,141.72,45.0]
[1723772519542,7.0561,141.72,141.69,44.25479]
[1723772519848,7.0561,141.72,141.7,45.25098]
[1723772520393,7.0558,141.73,141.7,45.25098]
[1723772520788,26.81,141.75,141.7,45.12549]
[1723772520995,26.81,141.73,141.67,20.0]
[1723772521290,7.057,141.71,141.67,20.0]
[1723772522018,7.057,141.71,141.67,27.0585]
[1723772522230,7.0575,141.7,141.67,20.0]
[1723772522420,7.0575,141.7,141.66,24.2276]
[1723772523719,7.0575,141.7,141.67,45.12549]
[1723772523919,7.0568,141.71,141.68,1.41153734]
[1723772524517,7.0568,141.71,141.67,72.30938]
[1723772524709,7.0568,141.71,141.68,0.12549]
[1723772528405,7.0565,141.72,141.69,20.0]
[1723772528601,17.6387,141.74,141.69,20.0]
[1723772528602,7.0566,141.71,141.7,45.12549]
[1723772529507,35.2708,141.77,141.72,27.0559]
[1723772529508,7.054,141.77,141.72,27.0559]
[1723772529706,7.054,141.77,141.73,52.30648]
[1723772530112,7.054,141.77,141.73,45.25098]
[1723772531631,7.0542,141.76,141.73,45.25098]
[1723772533142,34.13549319,141.81,141.74,28.46592553]
[1723772533306,7.053,141.79,141.75,45.25098]
[1723772533501,7.053,141.79,141.76,1.41062367]
[1723772534504,26.81,141.81,141.75,45.12549]
[1723772534746,26.81,141.81,141.72,20.0]
[1723772534747,7.0546,141.76,141.72,20.0]
[1723772535127,7.0546,141.76,141.72,21.41096714]
[1723772535512,7.0547,141.75,141.71,6.6011]
[1723772536022,7.0547,141.75,141.72,45.25098]
[1723772536834,26.81,141.77,141.72,65.25098]
[1723772536835,7.0542,141.76,141.72,65.25098]
[1723772537133,26.81,141.81,141.75,7.0542]
[1723772537430,26.81,141.81,141.76,45.25098]
[1723772538023,7.0527,141.79,141.76,45.25098]
[1723772538217,7.0527,141.79,141.76,65.25098]
[1723772539344,7.0527,141.79,141.76,45.25098]
[1723772539842,7.0527,141.79,141.76,45.12549]
[1723772540133,7.0545,141.76,141.71,24.2421]
[1723772540337,7.0548,141.75,141.72,0.25098]
[1723772540633,7.0543,141.76,141.72,21.66190382]
[1723772541534,7.0543,141.76,141.73,45.0]
[1723772542531,7.0543,141.76,141.74,0.12549]
[1723772544236,7.0535,141.78,141.74,20.25098]
[1723772544545,26.81,141.79,141.75,45.0]
[1723772546131,7.0537,141.77,141.75,45.0]
[1723772547665,7.0541,141.76,141.75,45.0]
[1723772547865,7.0541,141.76,141.72,7.0561]
[1723772548043,7.0546,141.75,141.73,45.12549]
[1723772548251,7.0546,141.75,141.73,0.12549]
[1723772548758,7.0543,141.76,141.73,0.12549]
[1723772550432,26.81,141.77,141.73,0.12549]
[1723772550433,7.0538,141.77,141.73,0.25098]
[1723772550936,7.0538,141.77,141.73,7.30648]
[1723772551137,7.0538,141.77,141.74,45.0]
[1723772555335,7.0538,141.77,141.75,0.12549]
[1723772561046,7.053,141.79,141.75,0.12549]
[1723772561242,21.7817,141.87,141.8,20.0]
[1723772561442,7.0503,141.84,141.81,1.53562755]
[1723772561652,7.0507,141.83,141.81,46.53562755]
[1723772561981,21.7817,141.87,141.81,46.53562755]
[1723772561982,7.05,141.85,141.82,21.41014912]
[1723772562272,7.05,141.85,141.83,45.12549]
[1723772563344,7.0493,141.86,141.83,45.12549]
[1723772563538,7.0498,141.85,141.83,45.12549]
[1723772563742,7.0498,141.85,141.81,0.12549]
[1723772563743,17.7698,141.85,141.81,0.12549]
[1723772563975,7.0498,141.85,141.81,45.25098]
[1723772564280,7.0502,141.84,141.81,45.25098]
[1723772564467,26.77,141.86,141.81,45.25098]
[1723772564765,26.77,141.86,141.81,45.12549]
[1723772566166,7.0503,141.84,141.81,45.12549]
[1723772566559,7.0508,141.83,141.79,24.6839]
[1723772566741,7.0512,141.82,141.8,45.0]
[1723772566948,7.0535,141.78,141.75,15.9998]
[1723772567151,7.0535,141.78,141.74,33.2927]
[1723772567664,26.77,141.78,141.74,20.0]
[1723772568175,7.0538,141.77,141.74,20.0]
[1723772568380,7.0542,141.76,141.72,44.6953]
[1723772569245,7.0538,141.77,141.72,44.6953]
[1723772569445,7.0538,141.77,141.73,7.0555]
[1723772569652,7.0533,141.78,141.73,7.0555]
[1723772569970,26.77,141.78,141.72,37.6393]
[1723772570361,26.77,141.8,141.74,20.0]
[1723772570689,7.0535,141.78,141.75,45.12549]
[1723772570873,7.0541,141.76,141.73,0.12549]
[1723772571256,7.0541,141.76,141.73,0.25098]
[1723772571454,7.0541,141.76,141.73,45.25098]
[1723772572077,7.0547,141.75,141.73,45.12549]
[1723772572654,7.0543,141.76,141.73,45.12549]
[1723772573575,7.0537,141.77,141.73,52.18099]
[1723772573751,26.77,141.78,141.73,45.12549]
[1723772574556,26.77,141.78,141.74,1.41087178]
[1723772575161,7.0542,141.76,141.74,1.41087178]
[1723772575875,7.0542,141.76,141.73,45.12549]
[1723772577498,33.8232,141.78,141.73,45.12549]
[1723772577712,7.0537,141.77,141.74,1.41083147]
[1723772578302,7.0543,141.76,141.73,45.12549]
[1723772579224,7.0538,141.77,141.73,45.12549]
[1723772580512,7.0538,141.77,141.73,52.18109]
[1723772580917,7.0538,141.77,141.74,20.0]
[1723772581117,7.0538,141.77,141.75,45.0]
[1723772582294,7.0541,141.76,141.75,45.0]
[1723772583229,7.0541,141.76,141.73,0.12549]
[1723772583517,7.0541,141.76,141.73,45.12549]
[1723772583721,7.0541,141.76,141.72,27.056]
[1723772585098,7.0541,141.76,141.73,45.12549]
[1723772588724,7.0541,141.76,141.74,0.12549]
[1723772589019,7.0538,141.77,141.74,20.12549]
[1723772589317,7.0502,141.84,141.79,20.0]
[1723772589619,7.0508,141.83,141.8,45.12549]
[1723772589802,26.77,141.84,141.78,17.75819]
[1723772590001,26.77,141.84,141.79,45.12549]
[1723772590203,7.0513,141.82,141.79,45.12549]
[1723772590520,7.0508,141.83,141.79,65.12549]
[1723772590711,7.0503,141.84,141.8,1.41023141]
[1723772591024,7.0507,141.83,141.79,72.17769]
[1723772593001,7.0517,141.81,141.79,45.12549]
[1723772593217,7.0517,141.81,141.78,45.0]
[1723772594222,7.0512,141.82,141.79,1.41044061]
[1723772594423,7.0512,141.82,141.78,52.0531]
[1723772594629,7.0512,141.82,141.79,0.12549]
[1723772595012,7.0508,141.83,141.79,7.17809]
[1723772595216,7.0511,141.82,141.79,0.12549]
[1723772597118,7.0507,141.83,141.79,20.25098]
[1723772597317,7.0507,141.83,141.8,45.0]
[1723772599569,43.2494,141.86,141.8,45.0]
[1723772599570,7.0513,141.82,141.8,45.0]
[1723772599774,7.0518,141.81,141.77,37.6337]
[1723772599933,7.0526,141.8,141.76,23.4793]
[1723772600136,7.0518,141.81,141.76,43.4793]
[1723772600946,7.0518,141.81,141.77,7.0536]
[1723772601148,7.0512,141.82,141.78,53.58910577]
[1723772601336,7.0512,141.82,141.78,53.71459577]
[1723772601934,43.2494,141.86,141.79,40.0]
[1723772602147,33.2391,141.88,141.81,20.0]
[1723772602334,20.0,141.87,141.82,45.12549]
[1723772602539,7.05,141.85,141.82,45.12549]
[1723772603161,7.0493,141.86,141.82,46.53552413]
[1723772603361,26.77,141.86,141.82,45.12549]
[1723772603658,26.77,141.86,141.81,45.0]
[1723772605036,7.0505,141.84,141.81,45.0]
[1723772606935,7.0498,141.85,141.81,52.0516]
[1723772607957,7.0498,141.85,141.82,0.25098]
[1723772608470,7.0498,141.85,141.82,0.12549]
[1723772608646,7.0498,141.85,141.81,52.0516]
[1723772610068,7.0498,141.85,141.81,45.0]
[1723772610654,7.0517,141.81,141.77,44.6867]
[1723772610849,26.77,141.84,141.77,37.6334]
[1723772611050,7.0525,141.8,141.76,16.4252]
[1723772611247,7.0518,141.81,141.76,16.4252]
[1723772611660,7.0518,141.81,141.76,36.4252]
[1723772611866,7.0518,141.81,141.77,1.41047443]
[1723772612146,7.0518,141.81,141.76,36.4252]
[1723772612350,7.0518,141.81,141.77,65.0]
[1723772612557,7.0518,141.81,141.78,1.41046125]
[1723772613146,17.7613,141.82,141.77,72.0536]
[1723772613565,17.7613,141.82,141.78,0.25098]
[1723772613944,26.78,141.83,141.78,17.88348]
[1723772614274,26.78,141.83,141.79,45.0]
[1723772614645,7.0518,141.81,141.79,45.0]
[1723772616349,7.0513,141.82,141.79,45.0]
[1723772618358,26.78,141.83,141.76,23.4792]
[1723772618561,26.78,141.81,141.76,7.054]
[1723772618950,7.0525,141.8,141.76,7.054]
[1723772619257,7.0517,141.81,141.77,27.0536]
[1723772619656,7.0517,141.81,141.78,0.12549]
[1723772619874,7.0517,141.81,141.78,45.25098]
[1723772624392,26.78,141.83,141.78,45.0]
[1723772624393,7.0522,141.8,141.78,45.0]
[1723772624690,7.0522,141.8,141.76,7.0538]
[1723772624921,7.0522,141.8,141.76,8.46435426]
[1723772625781,7.0522,141.8,141.77,66.66153913]
[1723772626315,7.0522,141.8,141.77,65.25098]
[1723772626513,7.0518,141.81,141.77,72.30458]
[1723772628369,7.0518,141.81,141.78,1.41037154]
[1723772628612,7.0518,141.81,141.79,0.12549]
[1723772629920,7.0513,141.82,141.79,20.0]
[1723772630094,7.0513,141.82,141.8,45.25098]
[1723772632345,7.0513,141.82,141.8,45.0]
[1723772632507,7.0516,141.81,141.79,45.0]
[1723772632707,7.0516,141.81,141.78,45.0]
[1723772632933,7.0516,141.81,141.79,0.12549]
[1723772634021,17.7616,141.81,141.79,0.12549]
[1723772635527,7.0516,141.81,141.79,0.12549]
[1723772640318,7.0513,141.82,141.79,0.12549]
[1723772643036,7.053,141.79,141.75,27.0542]
[1723772643230,17.6269,141.83,141.77,20.0]
[1723772643438,28.3369,141.83,141.77,20.0]
[1723772644036,28.3369,141.83,141.77,27.0536]
[1723772644037,7.052,141.81,141.77,27.0536]
[1723772644258,7.052,141.81,141.78,45.12549]
[1723772644633,7.0521,141.8,141.78,45.0]
[1723772646352,17.7626,141.79,141.73,53.1627]
[1723772646555,17.7626,141.79,141.74,7.0548]
[1723772647865,17.7626,141.79,141.75,45.25098]
[1723772648169,10.71,141.77,141.7,24.6993]
[1723772648347,10.71,141.75,141.71,20.0]
[1723772648551,10.71,141.75,141.7,17.6425]
[1723772648853,10.71,141.75,141.71,20.0]
[1723772649069,17.765,141.75,141.71,27.0566]
[1723772649643,17.765,141.75,141.72,45.25098]
[1723772650382,17.765,141.75,141.72,0.25098]
[1723772650962,17.765,141.75,141.72,0.12549]
[1723772651466,7.0552,141.74,141.72,0.12549]
[1723772652158,17.7648,141.75,141.72,0.12549]
[1723772652684,7.0551,141.74,141.72,0.12549]
[1723772652905,17.7648,141.75,141.72,0.12549]
[1723772654553,7.0543,141.76,141.72,0.25098]
[1723772654760,17.7643,141.76,141.72,0.25098]
[1723772657395,16.1533,141.8,141.75,20.0]
[1723772657553,10.71,141.81,141.76,46.66160766]
[1723772657753,10.71,141.81,141.76,45.25098]
[1723772658878,10.71,141.81,141.76,46.6615417]
[1723772659087,7.053,141.79,141.77,1.4105617]
[1723772659299,7.053,141.79,141.76,45.25098]
[1723772660920,10.71,141.81,141.76,52.30498]
[1723772661214,7.0525,141.8,141.76,45.25098]
[1723772662522,7.0527,141.79,141.76,45.25098]
[1723772664386,17.7627,141.79,141.76,45.25098]
[1723772665081,10.71,141.77,141.73,20.0]
[1723772665280,17.7638,141.77,141.73,27.0555]
[1723772666335,17.7638,141.77,141.74,45.0]
[1723772666701,10.71,141.77,141.74,53.46592787]
[1723772666900,10.71,141.77,141.75,20.25098]
[1723772667205,10.71,141.77,141.76,45.0]
[1723772667410,10.71,141.77,141.76,45.12549]
[1723772668939,7.0532,141.78,141.76,45.12549]
[1723772671507,7.0527,141.79,141.76,45.12549]
[1723772671837,7.0522,141.8,141.77,1.66150378]
[1723772672044,7.0522,141.8,141.77,0.25098]
[1723772672941,7.0527,141.79,141.77,0.25098]
[1723772673242,7.0527,141.79,141.76,45.0]
[1723772675322,7.0527,141.79,141.77,0.12549]
[1723772676011,7.0531,141.78,141.77,0.12549]